Cogmind - Beta 13 @@@ ROGUE MODE // 2024.03.31 @ 23:04:41 Player: Sixten Result: Destroyed by G-34 Mercenary with Small Laser Performance ------------- Evolutions (1) 500 Regions Visited (4) 800 Robots Destroyed (35) 175 Value Destroyed (1077) 1077 Prototype IDs (0) 0 Alien Tech Used (0) 0 Bonus (60) 60 TOTAL SCORE: 2612 Bonus ------- High Alert Combat Kills 60 Cogmind --------- Core Integrity 0/400 Matter 267/300 Energy 250/250 System Corruption 0% Temperature Cool (6) Movement Treading (240) Ox1 Location -9/Storage Parts ------- > --- POWER (1) -------- Ion Engine > --- PROPULSION (4) --- Light Treads Aluminum Leg Wheel Wheel > --- UTILITY (2) ------ Improved Heat Sink Large Storage Unit > --- WEAPON (2) ------- Heavy Assault Rifle Grenade Launcher > --- INVENTORY (15) --- Improved Ion Engine Improved Ion Engine Small Storage Unit Large Storage Unit Large Matter Pod (129) Visual Processing Unit Light Armor Plating Light Armor Plating Medium Armor Plating Small Laser Mace Peak State ------------ > --- POWER ------------ Light Ion Engine > --- PROPULSION ------- Aluminum Leg Aluminum Leg Aluminum Leg Aluminum Leg > --- UTILITY ---------- Improved Heat Sink Large Storage Unit > --- WEAPON ----------- Light Assault Rifle Rocket Launcher > --- INVENTORY -------- Ion Engine Small Storage Unit Large Storage Unit Visual Processing Unit Light Armor Plating Medium Armor Plating Small Laser Assault Rifle Light Assault Rifle Light Assault Rifle Grenade Launcher Mace [Rating: 13] Favorites ----------- Power Light Ion Engine Engine Light Ion Engine Propulsion Aluminum Leg Treads Light Treads Leg Aluminum Leg Wheel Wheel Utility Large Storage Unit Device Improved Heat Sink Storage Large Storage Unit Weapon Light Assault Rifle Energy Gun Medium Laser Ballistic Gun Light Assault Rifle Launcher Rocket Launcher Build | -11 -10 -10 -9 -9 ------- Run | Yrd Mat Min Mat Sto Slots Evolved 2 | . . . 2 . Power . | . . . . . Propulsion 2 | . . . 2 . Utility . | . . . . . Weapon . | . . . . . Parts Attached 28 | 7 2 2 5 12 Power 3 | 1 1 . . 1 Engine 3 | 1 1 . . 1 Core . | . . . . . Reactor . | . . . . . Propulsion 10 | 2 . 1 2 5 Treads 1 | . . . . 1 Leg 7 | 2 . 1 2 2 Wheel 2 | . . . . 2 Hover . | . . . . . Flight . | . . . . . Utility 3 | 1 1 . 1 . Device 1 | . . . 1 . Storage 2 | 1 1 . . . Processor . | . . . . . Hackware . | . . . . . Protection . | . . . . . Artifact . | . . . . . Weapon 12 | 3 . 1 2 6 Energy Gun 2 | 1 . . . 1 Energy Cannon . | . . . . . Ballistic Gun 8 | 2 . 1 1 4 Ballistic Cannon . | . . . . . Launcher 2 | . . . 1 1 Special Weapon . | . . . . . Impact Weapon . | . . . . . Slashing Weapon . | . . . . . Piercing Weapon . | . . . . . Special Melee Weapon . | . . . . . Unidentified Prototypes . | . . . . . Parts Lost 14 | . 1 2 1 10 Power 2 | . 1 . . 1 Propulsion 6 | . . 1 1 4 Utility . | . . . . . Weapon 6 | . . 1 . 5 Highest Loss Streak 4 | . 1 2 1 4 To Critical Strikes . | . . . . . Average Slot Usage (%) 91 | . 95 95 90 75 Engine 12 | . 12 14 11 10 Leg 25 | . 28 24 34 10 Wheel 1 | . . . . 12 Device 3 | . . . 5 11 Storage 21 | . 24 28 16 11 Energy Gun 3 | . 14 2 . . Ballistic Gun 19 | . 14 24 17 14 Launcher 1 | . . . 4 4 Naked Turns . | . . . . . Heaviest Build 32 | 12 31 31 31 32 Greatest Support 40 | 20 20 20 40 40 Greatest Overweight (x) 9 | 1 1 3 1 9 Average Overweight (x) . | . . 1 . . Largest Inventory Capacity 15 | 8 15 15 15 15 Average Capacity 14 | 7 13 15 15 15 Most Carried 13 | 1 6 8 13 13 Average Carried 7 | . 3 6 10 11 Final Capacity 15 | 8 15 15 15 15 Final Carried 13 | 1 5 7 13 11 Class Distribution -------------------- 73% | Mutant 26% | Scavenger-Mutant Dominant Class ---------------- Mutant | -10/Materials Mutant | -10/Mines Scavenger-Mutant | -9/Materials Scavenger-Mutant | -9/Storage Resources | -11 -10 -10 -9 -9 ----------- Run | Yrd Mat Min Mat Sto Matter Collected 840 | 227 72 38 184 319 Remotely . | . . . . . Salvage Created 1105 | . 174 110 293 528 Parts 80 | . 15 8 19 38 Haulers Intercepted . | . . . . . Recyclers Shooed 3 | . . 1 . 2 Parts Field Recycled . | . . . . . Retrieved Matter . | . . . . . Parts Self-Destructed . | . . . . . Prevented . | . . . . . Kills | -11 -10 -10 -9 -9 ------- Run | Yrd Mat Min Mat Sto Combat Hostiles Destroyed 29 | . 5 4 8 12 Guns 20 | . 5 4 4 7 AOE 9 | . . . 4 5 Classes Destroyed 8 | . 3 . 4 1 Worker 1 | . . . . 1 Builder 1 | . . . 1 . Tunneler 1 | . . . 1 . Recycler 1 | . . . 1 . Watcher 2 | . 1 . 1 . Swarmer 7 | . 2 2 3 . Grunt 13 | . 3 2 3 5 Sentry 9 | . . . 2 7 Best Kill Streak 6 | . 3 2 6 6 Combat Bots Only 6 | . 2 2 4 6 Max Kills in Single Turn 4 | . 1 1 4 1 Gunslinging . | . . . . . Exploded 3 | . . . 3 1 Melee . | . . . . . Uniques/NPCs Destroyed . | . . . . . Combat | -11 -10 -10 -9 -9 -------- Run | Yrd Mat Min Mat Sto Hostile Shots Fired 217 | . 41 30 38 108 Missed 75 | . 11 8 19 37 Damage Taken 1836 | . 278 204 334 1020 Core 499 | . 54 44 97 304 Absorbed by Shields . | . . . . . Core Remaining (%) 80 | 100 . 60 . . Volleys Fired 108 | . 14 19 18 57 Largest 2 | . 2 2 2 2 Hottest 70 | . 70 70 53 53 Shots Fired 182 | . 28 32 36 86 Gun 158 | . 28 32 26 72 Cannon . | . . . . . Launcher 24 | . . . 10 14 Special . | . . . . . Kinetic 131 | . 14 19 26 72 Thermal 27 | . 14 13 . . Explosive 24 | . . . 10 14 Electromagnetic . | . . . . . Robot Hit Streak 11 | . 11 8 7 10 Robot Miss Streak 7 | . 2 7 5 3 Penetration Max . | . . . . . Secondary Targets 1 | . . . . 1 Max Gunslinging Chain 1 | . . . . 1 Shots Hit Robots 104 | . 19 12 20 53 Core Hits 73 | . 12 9 20 32 Critical Kills 1 | . . . . 1 Critical Parts Destroyed . | . . . . . Critical Strikes 1 | . . . . 1 Destroy 1 | . . . . 1 Melee Attacks . | . . . . . Impact . | . . . . . Slashing . | . . . . . Piercing . | . . . . . Sneak Attacks . | . . . . . Combat Hostiles . | . . . . . Follow-up Attacks . | . . . . . Damage Inflicted 1973 | . 192 131 765 885 Guns 913 | . 192 118 159 444 Cannons . | . . . . . Explosions 1039 | . . . 606 433 Melee . | . . . . . Ramming 21 | . . 13 . 8 Kinetic 739 | . 79 57 159 444 Thermal 174 | . 113 61 . . Explosive 1039 | . . . 606 433 Electromagnetic . | . . . . . Impact . | . . . . . Slashing . | . . . . . Piercing . | . . . . . Highest Corruption . | . . . . . Average Corruption . | . . . . . Corruption Purged . | . . . . . Corruption Blocked . | . . . . . Overload Shots . | . . . . . Overflow Damage 20 | . . . 18 2 Projectiles . | . . . . . Explosions 20 | . . . 18 2 Melee . | . . . . . Knockbacks . | . . . . . Impact . | . . . . . Kinetic . | . . . . . Secondary . | . . . . . Self-Inflicted Damage 133 | . . . 102 31 Shots 4 | . . . 3 1 Rammed 1 | . . . . 1 Targets Rammed 4 | . . 2 . 2 Kicked 3 | . . 2 . 1 Crushed . | . . . . . Highest Temperature 108 | . 92 108 3 16 Average Temperature 40 | . 31 51 3 9 Received Heat Transfer 618 | . 57 60 84 417 Siege Activations . | . . . . . Robots Corrupted . | . . . . . Combat Hostiles . | . . . . . Parts Fried . | . . . . . Impact Corruptions . | . . . . . Robots Melted . | . . . . . Combat Hostiles . | . . . . . Parts Melted . | . . . . . Heat Transferred 518 | . 333 185 . . Parts Sabotaged . | . . . . . Parts Stolen . | . . . . . Parts Stripped . | . . . . . Power Chain Reactions . | . . . . . Alert | -11 -10 -10 -9 -9 ------- Run | Yrd Mat Min Mat Sto Peak Influence 591 | . 172 106 292 591 Initial 122 | . . 11 . 122 Average 104 | . 55 24 98 422 Maximum Alert Level 2 | . . . 1 2 Low Security (%) 82 | 100 100 100 83 9 Level 1 6 | . . . 16 14 Level 2 11 | . . . . 75 Level 3 . | . . . . . Level 4 . | . . . . . Level 5 . | . . . . . High Security . | . . . . . Max Security . | . . . . . Squads Dispatched 7 | . 1 . 1 5 Investigation . | . . . . . Extermination . | . . . . . Reinforcement 4 | . 1 . 1 2 Assault . | . . . . . Garrison 3 | . . . . 3 Intercept . | . . . . . Searches Triggered . | . . . . . Construction Impeded 2 | . . . 1 1 Haulers Reinforced . | . . . . . Active Scanning Responses . | . . . . . Cargo Convoy Interrupts . | . . . . . Stealth | -11 -10 -10 -9 -9 --------- Run | Yrd Mat Min Mat Sto Distress Signals 1 | . . . . 1 Communications Jammed . | . . . . . Distress Signals . | . . . . . Times Spotted 47 | . 11 5 10 21 Peak Tracking Total 5 | . 4 3 5 4 Tactical Retreats 1 | . . . 1 . Traps | -11 -10 -10 -9 -9 ------- Run | Yrd Mat Min Mat Sto Traps Triggered . | . . . . . Indirectly . | . . . . . Trap Hack Attempts . | . . . . . Triggered . | . . . . . Disarmed . | . . . . . Reprogrammed . | . . . . . Reused . | . . . . . Traps Extracted . | . . . . . Installed . | . . . . . Triggered . | . . . . . Machines | -11 -10 -10 -9 -9 ---------- Run | Yrd Mat Min Mat Sto Machines Disabled 7 | . . . 2 5 Max in Single Turn 2 | . . . 2 1 Machines Repaired . | . . . . . Machines Dismantled . | . . . . . Machines Sabotaged . | . . . . . Overloaded Fab Kills . | . . . . . Hacking | -11 -10 -10 -9 -9 --------- Run | Yrd Mat Min Mat Sto Machines Accessed 5 | . . . 2 3 Terminals 5 | . . . 2 3 Fabricators . | . . . . . Repair Stations . | . . . . . Recycling Units . | . . . . . Scanalyzers . | . . . . . Garrison Access . | . . . . . Total Hacks 7 | . . . 4 3 Successful 6 | . . . 3 3 Failed 1 | . . . 1 . Catastrophic . | . . . . . Database Lockouts . | . . . . . Manual 1 | . . . . 1 Terminals 7 | . . . 4 3 Fabricators . | . . . . . Repair Stations . | . . . . . Recycling Units . | . . . . . Scanalyzers . | . . . . . Garrison Access . | . . . . . Terminal Hacks 6 | . . . 3 3 Open Door 1 | . . . . 1 Emergency Access Points 1 | . . . . 1 Terminal Index 1 | . . . 1 . Alert Level 2 | . . . 2 . Dispatch Records 1 | . . . . 1 Fabricator Hacks . | . . . . . Repair Station Hacks . | . . . . . Recycling Unit Hacks . | . . . . . Scanalyzer . | . . . . . Garrison Access Hacks . | . . . . . Unauthorized Hacks . | . . . . . Terminals . | . . . . . Fabricators . | . . . . . Repair Stations . | . . . . . Recycling Units . | . . . . . Scanalyzers . | . . . . . Garrison Access . | . . . . . Data Cores Recovered . | . . . . . Used . | . . . . . Hacking Detections 4 | . . . 2 2 Full Trace Events . | . . . . . Feedback Events . | . . . . . Feedback Blocked . | . . . . . Robot Schematics Acquired . | . . . . . Robots Built . | . . . . . Authchips . | . . . . . Time . | . . . . . Total Robot Build Rating . | . . . . . Part Schematics Acquired . | . . . . . Parts Built . | . . . . . Authchips . | . . . . . Time . | . . . . . Total Part Build Rating . | . . . . . Parts Repaired . | . . . . . Time . | . . . . . Parts Recycled . | . . . . . Recycled Matter . | . . . . . Retrieved Matter . | . . . . . Retrieved Components . | . . . . . Parts Scanalyzed . | . . . . . Part Schematics Acquired . | . . . . . Parts Damaged . | . . . . . Bothacking | -11 -10 -10 -9 -9 ------------ Run | Yrd Mat Min Mat Sto Used RIF Installer . | . . . . . Robots Hacked . | . . . . . Non-combat . | . . . . . Combat . | . . . . . Robot Hacks Applied . | . . . . . Relay Couplers Released . | . . . . . Fabnet Peak Effective % . | . . . . . Robots Rewired . | . . . . . Allies Hacked . | . . . . . Hacks Repelled . | . . . . . Allies | -11 -10 -10 -9 -9 -------- Run | Yrd Mat Min Mat Sto Total Allies . | . . . . . Largest Group . | . . . . . Highest-Rated Group . | . . . . . Highest-Rated Ally . | . . . . . Total Orders . | . . . . . Ally Attacks . | . . . . . Total Damage . | . . . . . Kills . | . . . . . Allies Corrupted . | . . . . . Allies Melted . | . . . . . Intel | -11 -10 -10 -9 -9 ------- Run | Yrd Mat Min Mat Sto Robot Analysis Total . | . . . . . Derelict Logs Recovered 1 | . . 1 . . Drone Launches . | . . . . . Drone Recoveries . | . . . . . Exploration | -11 -10 -10 -9 -9 ------------- Run | Yrd Mat Min Mat Sto Turns Passed 3000 | 121 464 1257 718 440 Spaces Moved 1660 | 105 253 574 490 238 Core 29 | 27 . . . 2 Treads 13 | . . . . 13 Legs 1444 | 78 253 574 490 49 Wheels 174 | . . . . 174 Hover . | . . . . . Flight . | . . . . . Fastest Speed 50 | 50 120 190 120 95 Average Speed 158 | 105 165 208 127 118 Slowest Speed 500 | 120 190 330 190 500 Overloaded Moves . | . . . . . Propulsion Burnouts . | . . . . . Robots Hopped . | . . . . . Cave-ins Triggered . | . . . . . Exploration Rate (%) 40 | 4 39 89 26 43 Regions Visited 4 Branch Regions 2 Pre-discovered Areas . | . . . . . Known Exits Taken 1 | . . . 1 . Unknown Exits Taken 3 | 1 1 1 . . Scrap Searched 1 | . . 1 . . Spaces Dug 11 | . . . 11 . Terrain Destroyed 158 | . . . 76 82 Melee . | . . . . . Projectile . | . . . . . AOE 158 | . . . 76 82 Terrain Rammed . | . . . . . Walls Destroyed . | . . . . . Machines Disabled . | . . . . . Actions | -11 -10 -10 -9 -9 --------- Run | Yrd Mat Min Mat Sto Total 1853 | 112 273 605 547 316 Wait 32 | . . 5 27 . Move 1656 | 104 252 573 489 238 Hop . | . . . . . Pick Up 25 | 1 5 4 8 7 Fast Attach 9 | 6 1 . . 2 Attach 14 | . 1 2 2 9 Detach . | . . . . . Swap 5 | 1 . . 3 1 Drop . | . . . . . Fire 108 | . 14 19 18 57 Melee . | . . . . . Ram 1 | . . . . 1 Kick 3 | . . 2 . 1 Crush . | . . . . . Escape Stasis . | . . . . . Rewire . | . . . . . Trap . | . . . . . Miscellaneous . | . . . . . Route ------- -11/Scrapyard -10/Materials -10/Mines (discovered 2 exits: *Mat x2) -9/Materials (discovered 2 exits: Min / *Sto) -9/Storage History --------- Turn | Location | Event 5 | -11/Scrapyard | Discovered new exit (range 14) 122 | -11/Scrapyard | Entered Materials 307 | -10/Materials | Build established: Mutant 567 | -10/Materials | Discovered new exit (range 10) 586 | -10/Materials | Entered Mines 593 | -10/Mines | Received a Rocket Launcher from a helpful Derelict 675 | -10/Mines | Met a Derelict bent on vengeance 759 | -10/Mines | Found a hidden stash of uninstalled traps 1016 | -10/Mines | Learned location of 2 exits from Materials 1603 | -10/Mines | Discovered new exit (range 10) 1826 | -10/Mines | Discovered new exit (range 7) 1843 | -10/Mines | Entered Materials 1843 | -9/Materials | Evolved 2 slots: Propulsion x2 1844 | -9/Materials | Identified exit to Storage 1844 | -9/Materials | Identified exit to Mines 2460 | -9/Materials | Build established: Scavenger-Mutant 2561 | -9/Materials | Entered Storage 2655 | -9/Storage | Core integrity fell below 50% 2667 | -9/Storage | Lost 4 parts (1p2n1w) 2751 | -9/Storage | Lost 4 parts (2n2w) 2788 | -9/Storage | Core integrity fell below 20% 3001 | -9/Storage | Destroyed by G-34 Mercenary with Small Laser Last Messages --------------- >>Enumerate(Squads) Retrieving dispatch records... Found 17 active squads: 8x Security 2x Surveillance 1x Patrol 6x Transport 02935_ U-05 Engineer lays Concrete. 02938_ K-01 Serf collects debris. 02940_ U-05 Engineer lays Concrete. 02953_ Connecting with Door Terminal... >>Open(Door) Sealed Heavy Doors opened. 02957_ Extracted 21 matter. 02958_ Acquired Lrg. Matter Pod. 02968_ O-16 Technician: "IFF HANDSHAKE FAILED. SECURING TERMINAL." 02970_ Destroyed Hover Unit. 02975_ ALERT: Hostiles spotted, dispatching reinforcements to Terminal S014. Map ----- +----------------------------------------------------+ | | | | | | | | | | | | | | | | | | | ??????????????????????????????????????? | | ??????????????????????????????????????? | | ??????????????????????????????????????? | | ??????????????????????????????????????? | | ??????????????######??????????????????? | | ?????????????? #??????????????????? | | ??????????????? ##""#??????????????? | | ??????????????? # ???????????????? | | ???????####????# ????????????????? | | ??????##"T"##### #?????????????????? | | ?????? #?????????????????? | | ??????? # #?????????????????? | | ??????? """"g# #?????????????????? | | ??????? """" #????????#######???? | | ?????# """"g# ########## #???? | | ?????# """" # #???? | | ?????# @# T #???? | | ?????# # #???? | | ?????###"T"#k####+######### #???? | | ???????#####w??## ###### ### #???? | | ???????????#???#T ## #???? | | ??????????????### ### """ #???? | | ??????????????# ## """ ##??? | | ??????????????#!! !## """ ! #??? | | ??????????????#!! !!!## * ##??? | | ??????????????#!! !!!## ! # #???? | | ??????????????######### ###???? | | ??????????????????????#! = #?????? | | ???????????# #############+######?????? | | ???????????# ^ #?????? | | ???????????+ ^ #?????? | | ???????????# #?????? | | ???????????###+#+##### ########?????? | | ?????????????????????# #????????????? | | ?????????????????????# #?????###????? | | ?????????????????????# #?????# ????? | | ?????????????????????# #?????# #????? | | ?????????????????????# #?????# #????? | | ?????????????????????# #?????/ #????? | | ?????????????????????# #?????# #????? | | ?????????????????????# #?????# #????? | +----------------------------------------------------+ Best States ------------- Heat Dissipation 42 Energy Generation 10 Energy Capacity 250 Matter Stores 300 Matter Capacity 300 Sight Range 16 Terrain Scan Density 10 Evasion (%) 55 Recoil Reduction 1 Item Schematics ----------------- None Robot Schematics ------------------ None Fabricated ------------ Nothing Alien Tech Used ----------------- None Achievements -------------- None Challenges ------------ None Game ------ Seed AssembledColdCharge Manual? 0 Play Time 00:23:47 Cumulative 6.0 hours Start 2024.03.31 @ 22:37:41 End 2024.03.31 @ 23:04:41 Sessions 1 Manual Loads 0 Difficulty Rogue Special Mode None Game No. 30 Rogue 30 Adventurer 0 Explorer 0 Win Type - Total 0 Types 0/0/0/0/0/0/0/0/0 Lore% 8 Gallery% 8 Achievement% 9 Wizard Run 0 Options --------- Layout 1 ASCII 0 Keyboard 1 Movement Arrows Keybinds 0 Fullscreen 1 Font 24/Smallcaps Map View 50x35 Zoom Use 0% Tactical HUD 1 Map Filters NONE Filters NONE Steam 1 RUN: 2d10c80e-30a5-4d31-abf9-543726d96ccf